Workbook

Sheet Лист2
B2: План учебного процесса 35.02.16 Эксплуатация и ремонт сельскохозяйственной техники и оборудования | J2: 024 эр
B3: Индекс | D3: Наименование циклов, дисциплин, профессиональных модулей, МДК, практик | E3: Формы промежуточной аттестации | H3: максимальная учебная нагрузка | I3: Учебная нагрузка обучающихся (час.) | R3: Распределение учебной нагрузки по курсам и семестрам (час. в семестр)
I4: Самостоятельная учебная работа | J4: всего | R4: I курс | T4: II курс | V4: III курс | X4: IV курс
E5: Зачеты | F5: Дифференцированные зачеты | G5: Экзамены | K5: в т.ч. по учебным дисциплинам и МДК | N5: По практике учебной | O5: По практике производственной | P5: Консультации | Q5: Промежуточная аттестация | R5: 1 сем. | S5: 2 сем. | T5: 3 сем. | U5: 4 сем. | V5: 5 сем. | W5: 6 сем. | X5: 7 сем. | Y5: 8 сем.
R6: 17 нед. | S6: 24 нед. | T6: 17 нед. | U6: 24 нед. | V6: 17 нед. | W6: 25 нед. | X6: 17 нед. | Y6: 24 нед.
K7: теоретического обучения | L7: лаб. и практ. занятий | M7: курсовых работ (проектов) | R7: (17 нед. т/о+ПА) | S7: (24 нед. т/о+ ПА) | T7: (17 нед. т/о) | U7: (18 нед. т/о+4 нед. УП+2 нед. ПП+ПА) | V7: (14 нед. т/о+2 нед. УП+ 1 нед. ПП+ПА) | W7: (17 нед. т/о+4 нед. УП+4 нед. ПП+ПА) | X7: (13 нед. т/о+2 нед. УП+2 нед. ПП+ПА) | Y7: (8нед. т/о+3 нед. УП+3нед. ПП+4 нед. ПДП+ПА+6 нед. ГИА)
B8: 1 | C8: 2 | D8: 3 | E8: 4 | F8: 5 | G8: 6 | H8: 7 | I8: 8 | K8: 10 | L8: 11 | M8: 12 | N8: 13 | O8: 14 | P8: 15 | Q8: 16 | R8: 17 | S8: 18 | T8: 19 | U8: 20 | V8: 21 | W8: 22 | X8: 23 | Y8: 24
B9: ОУД.00 | C9: Предметная область | D9: Общеобразовательные учебные дисциплины | E9: =COUNTA(E10:E25) -> 1 | F9: =COUNTA(F10:F25) -> 11 | G9: =COUNTA(G10:G25) -> 4 | H9: =SUM(H10:H25) -> 1476 | I9: =SUM(I10:I25) -> 0 | J9: =K9+L9+M9+N9+O9+P9+Q9 -> 1476 | K9: =SUM(K10:K25) -> 567 | L9: =SUM(L10:L25) -> 853 | M9: =SUM(M10:M25) -> 0 | N9: =SUM(N10:N25) -> 0 | O9: =SUM(O10:O25) -> 0 | P9: =SUM(P10:P25) -> 8 | Q9: =SUM(Q10:Q25) -> 48 | R9: =SUM(R10:R25) -> 612 | S9: =SUM(S10:S25) -> 864 | T9: =SUM(T10:T25) -> 0 | U9: =SUM(U10:U25) -> 0 | V9: =SUM(V10:V25) -> 0 | W9: =SUM(W10:W25) -> 0 | X9: =SUM(X10:X25) -> 0 | Y9: =SUM(Y10:Y25) -> 0 | Z9: =SUM(R9:Y9) -> 1476
B10: ОУД.01 | C10: Русский язык и литература | D10: Русский язык | G10: 1 | H10: =I10+J10 -> 84 | I10: 0 | J10: =K10+L10+M10+N10+O10+P10+Q10 -> 84 | K10: 34 | L10: 42 | M10: 0 | N10: 0 | O10: 0 | P10: 2 | Q10: 6 | R10: 84 | S10: 0 | T10: 0 | U10: 0 | V10: 0 | W10: 0 | X10: 0 | Y10: 0 | Z10: =SUM(R10:Y10) -> 84
B11: ОУД.02 | D11: Литература | F11: 2 | H11: 114 | I11: 0 | J11: =K11+L11+M11+N11+O11+P11+Q11 -> 114 | K11: 40 | L11: 72 | M11: 0 | N11: 0 | O11: 0 | P11: 0 | Q11: 2 | R11: 48 | S11: 66 | T11: 0 | U11: 0 | V11: 0 | W11: 0 | X11: 0 | Y11: 0 | Z11: =SUM(R11:Y11) -> 114
B12: ОУД 03 | C12: Математика и информатика | D12: Математика | G12: 2 | H12: 232 | I12: 0 | J12: =K12+L12+M12+N12+O12+P12+Q12 -> 232 | K12: 70 | L12: 154 | M12: 0 | N12: 0 | O12: 0 | P12: 2 | Q12: 6 | R12: 122 | S12: 110 | T12: 0 | U12: 0 | V12: 0 | W12: 0 | X12: 0 | Y12: 0 | Z12: =SUM(R12:Y12) -> 232
B13: ОУД.04 | C13: Иностранный язык | D13: Иностранный язык | F13: 2 | H13: 180 | I13: 0 | J13: =K13+L13+M13+N13+O13+P13+Q13 -> 180 | K13: 58 | L13: 120 | M13: 0 | N13: 0 | O13: 0 | P13: 0 | Q13: 2 | R13: 60 | S13: 120 | T13: 0 | U13: 0 | V13: 0 | W13: 0 | X13: 0 | Y13: 0 | Z13: =SUM(R13:Y13) -> 180
B14: ОУД.05 | C14: Математика и информатика | D14: Информатика | F14: 2 | H14: 108 | I14: 0 | J14: =K14+L14+M14+N14+O14+P14+Q14 -> 108 | K14: 26 | L14: 80 | M14: 0 | N14: 0 | O14: 0 | P14: 0 | Q14: 2 | R14: 30 | S14: 78 | T14: 0 | U14: 0 | V14: 0 | W14: 0 | X14: 0 | Y14: 0 | Z14: =SUM(R14:Y14) -> 108
B15: ОУД.06 | C15: Естественные науки | D15: Физика | G15: 2 | H15: 100 | I15: 0 | J15: =K15+L15+M15+N15+O15+P15+Q15 -> 100 | K15: 36 | L15: 56 | M15: 0 | N15: 0 | O15: 0 | P15: 2 | Q15: 6 | R15: 60 | S15: 40 | T15: 0 | U15: 0 | V15: 0 | W15: 0 | X15: 0 | Y15: 0 | Z15: =SUM(R15:Y15) -> 100
B16: ОУД.07 | D16: Химия | F16: 2 | H16: 78 | I16: 0 | J16: =K16+L16+M16+N16+O16+P16+Q16 -> 78 | K16: 48 | L16: 28 | M16: 0 | N16: 0 | O16: 0 | P16: 0 | Q16: 2 | R16: 34 | S16: 44 | T16: 0 | U16: 0 | V16: 0 | W16: 0 | X16: 0 | Y16: 0 | Z16: =SUM(R16:Y16) -> 78
B17: ОУД.08 | D17: Биология | G17: 2 | H17: 72 | I17: 0 | J17: =K17+L17+M17+N17+O17+P17+Q17 -> 72 | K17: 42 | L17: 22 | M17: 0 | N17: 0 | O17: 0 | P17: 2 | Q17: 6 | R17: 48 | S17: 24 | T17: 0 | U17: 0 | V17: 0 | W17: 0 | X17: 0 | Y17: 0 | Z17: =SUM(R17:Y17) -> 72
B18: ОУД.09 | C18: Общественные науки | D18: История | F18: 2 | H18: 136 | I18: 0 | J18: =K18+L18+M18+N18+O18+P18+Q18 -> 136 | K18: 62 | L18: 72 | M18: 0 | N18: 0 | O18: 0 | P18: 0 | Q18: 2 | R18: 40 | S18: 96 | T18: 0 | U18: 0 | V18: 0 | W18: 0 | X18: 0 | Y18: 0 | Z18: =SUM(R18:Y18) -> 136
B19: ОУД.10 | D19: Обществознание | F19: 2 | H19: 72 | I19: 0 | J19: =K19+L19+M19+N19+O19+P19+Q19 -> 72 | K19: 50 | L19: 20 | M19: 0 | N19: 0 | O19: 0 | P19: 0 | Q19: 2 | S19: 72 | T19: 0 | U19: 0 | V19: 0 | W19: 0 | X19: 0 | Y19: 0 | Z19: =SUM(R19:Y19) -> 72
B20: ОУД 11 | C20: Естественные науки | D20: География | F20: 2 | H20: 36 | I20: 0 | J20: =K20+L20+M20+N20+O20+P20+Q20 -> 36 | K20: 22 | L20: 12 | M20: 0 | P20: 0 | Q20: 2 | S20: 36 | Z20: =SUM(R20:Y20) -> 36
B21: ОУД.12 | C21: Физическая культура и основы безопасности и защиты Родины | D21: Физическая культура | E21: 2 | H21: 72 | I21: 0 | J21: =K21+L21+M21+N21+O21+P21+Q21 -> 72 | K21: 7 | L21: 63 | M21: 0 | N21: 0 | O21: 0 | P21: 0 | Q21: 2 | R21: 35 | S21: 37 | T21: 0 | U21: 0 | V21: 0 | W21: 0 | X21: 0 | Y21: 0 | Z21: =SUM(R21:Y21) -> 72
B22: ОУД.13 | D22: Основы безопасности и защиты Родины | F22: 2 | H22: 80 | I22: 0 | J22: =K22+L22+M22+N22+O22+P22+Q22 -> 80 | K22: 38 | L22: 40 | M22: =SUM(M23:M24) -> 0 | N22: =SUM(N23:N24) -> 0 | O22: =SUM(O23:O24) -> 0 | P22: 0 | Q22: 2 | S22: 80 | T22: 0 | U22: 0 | V22: 0 | W22: 0 | X22: 0 | Y22: 0 | Z22: =SUM(R22:Y22) -> 80
B23: ОУД.14 | C23: Родной язык и родная литература | D23: Родная литература | F23: 2 | H23: 40 | I23: 0 | J23: =K23+L23+M23+N23+O23+P23+Q23 -> 40 | K23: 10 | L23: 28 | M23: 0 | N23: 0 | O23: 0 | P23: 0 | Q23: 2 | R23: 15 | S23: 25 | T23: 0 | U23: 0 | V23: 0 | W23: 0 | X23: 0 | Y23: 0 | Z23: =SUM(R23:Y23) -> 40
B24: ОУД.15 | D24: Родной язык | F24: 1 | H24: 36 | I24: 0 | J24: =K24+L24+M24+N24+O24+P24+Q24 -> 36 | K24: 10 | L24: 24 | M24: 0 | N24: 0 | O24: 0 | P24: 0 | Q24: 2 | R24: 36 | T24: 0 | U24: 0 | V24: 0 | W24: 0 | X24: 0 | Y24: 0 | Z24: =SUM(R24:Y24) -> 36
B25: ОУД.16 | D25: Индивидуальный проект | F25: 2 | H25: 36 | I25: 0 | J25: =K25+L25+M25+N25+O25+P25+Q25 -> 36 | K25: 14 | L25: 20 | M25: 0 | N25: 0 | O25: 0 | P25: 0 | Q25: 2 | S25: 36 | T25: 0 | U25: 0 | V25: 0 | W25: 0 | X25: 0 | Y25: 0 | Z25: =SUM(R25:Y25) -> 36
B26: СГ 00 | D26: Социально-гуманитарный цикл | E26: 3 | F26: =COUNTA(F27:F33) -> 5 | G26: =COUNTA(G27:G33) -> 2 | H26: =SUM(H27:H33) -> 666 | I26: =SUM(I27:I33) -> 14 | J26: =SUM(J27:J33) -> 652 | K26: =SUM(K27:K33) -> 232 | L26: =SUM(L27:L33) -> 396 | M26: =SUM(M27:M33) -> 0 | N26: =SUM(N27:N33) -> 0 | O26: =SUM(O27:O33) -> 0 | P26: =SUM(P27:P33) -> 4 | Q26: =SUM(Q27:Q33) -> 20 | R26: =SUM(R27:R33) -> 0 | S26: =SUM(S27:S33) -> 0 | T26: =SUM(T27:T33) -> 156 | U26: =SUM(U27:U33) -> 106 | V26: =SUM(V27:V33) -> 168 | W26: =SUM(W27:W33) -> 112 | X26: =SUM(X27:X33) -> 74 | Y26: =SUM(Y27:Y33) -> 50 | Z26: =SUM(R26:Y26) -> 666
B27: СГ.01 | D27: История России | F27: 3 | H27: =I27+J27 -> 76 | J27: =K27+L27+M27+N27+O27+P27+Q27 -> 76 | K27: 54 | L27: 20 | M27: 0 | N27: 0 | O27: 0 | P27: 0 | Q27: 2 | R27: 0 | S27: 0 | T27: 76 | U27: 0 | V27: 0 | W27: 0 | X27: 0 | Y27: 0 | Z27: =SUM(R27:Y27) -> 76
B28: СГ.02 | D28: Иностранный язык в профессиональной деятельности | E28: 4 | G28: 6 | H28: =I28+J28 -> 152 | I28: 0 | J28: =K28+L28+M28+N28+O28+P28+Q28 -> 152 | K28: 52 | L28: 92 | M28: 0 | N28: 0 | O28: 0 | P28: 2 | Q28: 6 | R28: 0 | S28: 0 | T28: 36 | U28: 52 | V28: 30 | W28: 34 | Y28: 0 | Z28: =SUM(R28:Y28) -> 152
B29: СГ.03 | D29: Физическая культура | E29: 4.6 | F29: 8 | H29: =I29+J29 -> 228 | I29: 0 | J29: =K29+L29+M29+N29+O29+P29+Q29 -> 228 | K29: 20 | L29: 206 | M29: 0 | N29: 0 | O29: 0 | P29: 0 | Q29: 2 | R29: 0 | S29: 0 | T29: 22 | U29: 30 | V29: 52 | W29: 36 | X29: 38 | Y29: 50 | Z29: =SUM(R29:Y29) -> 228
B30: СГ.04 | D30: Безопасность жизнедеятельности | F30: 6 | H30: =I30+J30 -> 78 | I30: 0 | J30: =K30+L30+M30+N30+O30+P30+Q30 -> 78 | K30: 38 | L30: 38 | M30: 0 | N30: 0 | O30: 0 | P30: 0 | Q30: 2 | R30: 0 | S30: 0 | T30: 0 | U30: 0 | V30: 36 | W30: 42 | X30: 0 | Y30: 0 | Z30: =SUM(R30:Y30) -> 78
B31: СГ.05 | D31: Психология общения | F31: 4 | H31: =I31+J31 -> 46 | I31: 0 | J31: =K31+L31+M31+N31+O31+P31+Q31 -> 46 | K31: 28 | L31: 16 | M31: 0 | N31: 0 | O31: 0 | P31: 0 | Q31: 2 | R31: 0 | S31: 0 | T31: 22 | U31: 24 | V31: 0 | X31: 0 | Y31: 0 | Z31: =SUM(R31:Y31) -> 46
B32: СГ.06 | D32: Основы финансовой грамотности | G32: 7 | H32: =I32+J32 -> 36 | J32: =K32+L32+M32+N32+O32+P32+Q32 -> 36 | K32: 20 | L32: 10 | M32: 0 | N32: 0 | O32: 0 | P32: 2 | Q32: 4 | R32: 0 | S32: 0 | T32: 0 | U32: 0 | V32: 0 | W32: 0 | X32: 36 | Y32: 0 | Z32: =SUM(R32:Y32) -> 36
B33: СГ.07 | D33: Основы бережливого производства | F33: 5 | H33: =I33+J33 -> 50 | I33: 14 | J33: =K33+L33+M33+N33+O33+P33+Q33 -> 36 | K33: 20 | L33: 14 | M33: 0 | N33: 0 | O33: 0 | P33: 0 | Q33: 2 | R33: 0 | S33: 0 | T33: 0 | U33: 0 | V33: 50 | W33: 0 | X33: 0 | Y33: 0 | Z33: =SUM(R33:Y33) -> 50
B34: ОП.00 | D34: Общепрофессиональный цикл | E34: =COUNTA(E35:E47) -> 0 | F34: =COUNTA(F35:F47) -> 7 | G34: =COUNTA(G35:G47) -> 6 | H34: =SUM(H35:H47) -> 886 | I34: =SUM(I35:I47) -> 18 | J34: =K34+L34+M34+N34+O34+P34+Q34 -> 868 | K34: =SUM(K35:K47) -> 446 | L34: =SUM(L35:L47) -> 356 | M34: =SUM(M35:M47) -> 0 | N34: =SUM(N35:N47) -> 0 | O34: =SUM(O35:O47) -> 0 | P34: =SUM(P35:P47) -> 20 | Q34: =SUM(Q35:Q47) -> 46 | R34: =SUM(R35:R47) -> 0 | S34: =SUM(S35:S47) -> 0 | T34: =SUM(T35:T47) -> 108 | U34: =SUM(U35:U47) -> 90 | V34: =SUM(V35:V47) -> 174 | W34: =SUM(W35:W47) -> 144 | X34: =SUM(X35:X47) -> 276 | Y34: =SUM(Y35:Y47) -> 94 | Z34: =SUM(R34:Y34) -> 886
B35: ОП 01 | D35: Математические методы решения прикладных профессиональных задач | F35: 7 | H35: =I35+J35 -> 90 | I35: 12 | J35: =K35+L35+M35+N35+O35+P35+Q35 -> 78 | K35: 42 | L35: 34 | M35: 0 | N35: 0 | O35: 0 | P35: 0 | Q35: 2 | R35: 0 | S35: 0 | V35: 0 | W35: 0 | X35: 90 | Y35: 0 | Z35: =SUM(R35:Y35) -> 90
B36: ОП.02 | D36: Экологические основы природопользования | F36: 7 | H36: =I36+J36 -> 72 | I36: 0 | J36: =K36+L36+M36+N36+O36+P36+Q36 -> 72 | K36: 52 | L36: 18 | M36: 0 | N36: 0 | O36: 0 | P36: 0 | Q36: 2 | R36: 0 | S36: 0 | T36: 0 | U36: 0 | V36: 0 | W36: 0 | X36: 72 | Y36: 0 | Z36: =SUM(R36:Y36) -> 72
B37: ОП.03 | D37: Информационные технологии в профессиональной деятельности | F37: 8 | H37: =I37+J37 -> 84 | I37: 0 | J37: =K37+L37+M37+N37+O37+P37+Q37 -> 84 | K37: 30 | L37: 52 | M37: 0 | N37: 0 | O37: 0 | P37: 0 | Q37: 2 | R37: 0 | S37: 0 | T37: 0 | U37: 0 | V37: 0 | W37: 0 | X37: 42 | Y37: 42 | Z37: =SUM(R37:Y37) -> 84
B38: ОП.04 | D38: Инженерная графика | G38: 5 | H38: =I38+J38 -> 72 | I38: 0 | J38: =K38+L38+M38+N38+O38+P38+Q38 -> 72 | K38: 0 | L38: 70 | M38: 0 | N38: 0 | O38: 0 | P38: 0 | Q38: 2 | R38: 0 | S38: 0 | U38: 0 | V38: 72 | W38: 0 | X38: 0 | Y38: 0 | Z38: =SUM(R38:Y38) -> 72
B39: ОП.05 | D39: Техническая механика | G39: 4 | H39: =I39+J39 -> 90 | I39: 6 | J39: =K39+L39+M39+N39+O39+P39+Q39 -> 84 | K39: 50 | L39: 24 | M39: 0 | N39: 0 | O39: 0 | P39: 4 | Q39: 6 | R39: 0 | S39: 0 | U39: 90 | V39: 0 | X39: 0 | Y39: 0 | Z39: =SUM(R39:Y39) -> 90
B40: ОП.06 | D40: Материаловедение | G40: 3 | H40: =I40+J40 -> 72 | I40: 0 | J40: =K40+L40+M40+N40+O40+P40+Q40 -> 72 | K40: 32 | L40: 30 | M40: 0 | N40: 0 | O40: 0 | P40: 4 | Q40: 6 | R40: 0 | S40: 0 | T40: 72 | V40: 0 | W40: 0 | X40: 0 | Y40: 0 | Z40: =SUM(R40:Y40) -> 72
B41: ОП.07 | D41: Электротехника и электроника | G41: 7 | H41: =I41+J41 -> 72 | I41: 0 | J41: =K41+L41+M41+N41+O41+P41+Q41 -> 72 | K41: 42 | L41: 20 | M41: 0 | N41: 0 | O41: 0 | P41: 4 | Q41: 6 | R41: 0 | S41: 0 | V41: 0 | W41: 0 | X41: 72 | Y41: 0 | Z41: =SUM(R41:Y41) -> 72
B42: ОП.08 | D42: Основы гидравлики и теплотехники | G42: 6 | H42: =I42+J42 -> 72 | I42: 0 | J42: =K42+L42+M42+N42+O42+P42+Q42 -> 72 | K42: 36 | L42: 26 | M42: 0 | N42: 0 | O42: 0 | P42: 4 | Q42: 6 | R42: 0 | S42: 0 | U42: 0 | W42: 72 | X42: 0 | Y42: 0 | Z42: =SUM(R42:Y42) -> 72
B43: ОП.09 | D43: Основы агрономии | F43: 5 | H43: =I43+J43 -> 50 | I43: 0 | J43: =K43+L43+M43+N43+O43+P43+Q43 -> 50 | K43: 36 | L43: 12 | M43: 0 | N43: 0 | O43: 0 | P43: 0 | Q43: 2 | R43: 0 | S43: 0 | T43: 0 | U43: 0 | V43: 50 | W43: 0 | X43: 0 | Y43: 0 | Z43: =SUM(R43:Y43) -> 50
B44: ОП.10 | D44: Основы зоотехнии | F44: 6 | H44: =I44+J44 -> 72 | I44: 0 | J44: =K44+L44+M44+N44+O44+P44+Q44 -> 72 | K44: 40 | L44: 30 | M44: 0 | N44: 0 | O44: 0 | P44: 0 | Q44: 2 | R44: 0 | S44: 0 | T44: 0 | U44: 0 | W44: 72 | X44: 0 | Y44: 0 | Z44: =SUM(R44:Y44) -> 72
B45: ОП.11 | D45: Основы взаимозаменяемости и технические измерения | G45: 5 | H45: =I45+J45 -> 52 | I45: 0 | J45: =K45+L45+M45+N45+O45+P45+Q45 -> 52 | K45: 28 | L45: 14 | M45: 0 | N45: 0 | O45: 0 | P45: 4 | Q45: 6 | R45: 0 | S45: 0 | T45: 0 | V45: 52 | W45: 0 | X45: 0 | Y45: 0 | Z45: =SUM(R45:Y45) -> 52
B46: ОП.12 | D46: Основы экономики, менеджмента и маркетинга | F46: 3 | H46: =I46+J46 -> 36 | I46: 0 | J46: =K46+L46+M46+N46+O46+P46+Q46 -> 36 | K46: 20 | L46: 14 | M46: 0 | N46: 0 | O46: 0 | P46: 0 | Q46: 2 | R46: 0 | S46: 0 | T46: 36 | U46: 0 | V46: 0 | W46: 0 | X46: 0 | Z46: =SUM(R46:Y46) -> 36
B47: ОП.13 | D47: Правовые основы профессиональной деятельности и охрана труда | F47: 8 | H47: =I47+J47 -> 52 | I47: 0 | J47: =K47+L47+M47+N47+O47+P47+Q47 -> 52 | K47: 38 | L47: 12 | M47: 0 | N47: 0 | O47: 0 | P47: 0 | Q47: 2 | R47: 0 | S47: 0 | T47: 0 | V47: 0 | W47: 0 | X47: 0 | Y47: 52 | Z47: =SUM(R47:Y47) -> 52
B48: П.00 | D48: Профессиональный цикл | E48: =E49+E55+E60+E66+E71+E76+E77 -> 0 | F48: =F49+F55+F60+F66+F71+F76+F77 -> 13 | G48: =G49+G55+G60+G66+G71+G76+G77 -> 5 | H48: =H49+H55+H60+H66+H71+H76+H77 -> 2912 | I48: =I49+I55+I60+I66+I71+I76+I77 -> 166 | J48: =J49+J55+J60+J66+J71+J76+J77 -> 2746 | K48: =K49+K55+K60+K66+K71+K76+K77 -> 798 | L48: =L49+L55+L60+L66+L71+L76+L77 -> 392 | M48: =M49+M55+M60+M66+M71+M76+M77 -> 40 | N48: =N49+N55+N60+N66+N71+N76+N77 -> 504 | O48: =O49+O55+O60+O66+O71+O76+O77 -> 684 | P48: =P49+P55+P60+P66+P71+P76+P77 -> 44 | Q48: =Q49+Q55+Q60+Q66+Q71+Q76+Q77 -> 284 | R48: =R49+R55+R60+R66+R71+R76+R77 -> 0 | S48: =S49+S55+S60+S66+S71+S76+S77 -> 0 | T48: =T49+T55+T60+T66+T71+T76+T77 -> 348 | U48: =U49+U55+U60+U66+U71+U76+U77 -> 668 | V48: =V49+V55+V60+V66+V71+V76+V77 -> 270 | W48: =W49+W55+W60+W66+W71+W76+W77 -> 608 | X48: =X49+X55+X60+X66+X71+X76+X77 -> 262 | Y48: =Y49+Y55+Y60+Y66+Y71+Y76+Y77 -> 756 | Z48: =SUM(R48:Y48) -> 2912
B49: ПМ.01 | D49: Подготовка машин, механизмов, установок, приспособлений к работе, комплектование сборочных единиц | E49: =COUNTA(E50:E54) -> 0 | F49: =COUNTA(F50:F54) -> 3 | G49: =COUNTA(G50:G54) -> 1 | H49: =SUM(H50:H54) -> 1016 | I49: =SUM(I50:I54) -> 68 | J49: =SUM(J50:J54) -> 948 | K49: =SUM(K50:K54) -> 382 | L49: =SUM(L50:L54) -> 174 | M49: =SUM(M50:M54) -> 0 | N49: =SUM(N50:N54) -> 144 | O49: =SUM(O50:O54) -> 216 | P49: =SUM(P50:P54) -> 12 | Q49: =SUM(Q50:Q54) -> 20 | R49: =SUM(R50:R54) -> 0 | S49: =SUM(S50:S54) -> 0 | T49: =SUM(T50:T54) -> 348 | U49: =SUM(U50:U54) -> 668 | V49: =SUM(V50:V54) -> 0 | W49: =SUM(W50:W54) -> 0 | X49: =SUM(X50:X54) -> 0 | Y49: =SUM(Y50:Y54) -> 0 | Z49: =SUM(R49:Y49) -> 1016
B50: МДК. 01.01 | D50: Назначение и общее устройство тракторов, автомобилей и сельскохозяйственных машин | F50: 4 | H50: =I50+J50 -> 528 | I50: 36 | J50: =K50+L50+M50+N50+O50+P50+Q50 -> 492 | K50: 332 | L50: 148 | M50: 0 | N50: 0 | O50: 0 | P50: 6 | Q50: 6 | R50: 0 | S50: 0 | T50: 210 | U50: 318 | V50: 0 | W50: 0 | X50: 0 | Y50: 0 | Z50: =SUM(R50:Y50) -> 528
B51: МДК. 01.02 | D51: Подготовка тракторов и сельскохозяйственных машин и механизмов к работе | F51: 4 | H51: =I51+J51 -> 110 | I51: 32 | J51: =K51+L51+M51+N51+O51+P51+Q51 -> 78 | K51: 50 | L51: 26 | M51: 0 | N51: 0 | O51: 0 | P51: 0 | Q51: 2 | R51: 0 | S51: 0 | T51: 66 | U51: 44 | X51: 0 | Y51: 0 | Z51: =SUM(R51:Y51) -> 110
B52: УП.01 | D52: Учебная практика | F52: 4 | H52: =I52+J52 -> 144 | I52: 0 | J52: =K52+L52+M52+N52+O52+P52+Q52 -> 144 | K52: 0 | L52: 0 | M52: 0 | N52: 144 | O52: 0 | P52: 0 | Q52: 0 | R52: 0 | S52: 0 | T52: 72 | U52: 72 | X52: 0 | Y52: 0 | Z52: =SUM(R52:Y52) -> 144
B53: ПП.01 | D53: Производственная практика | H53: =I53+J53 -> 216 | I53: 0 | J53: =K53+L53+M53+N53+O53+P53+Q53 -> 216 | K53: 0 | L53: 0 | M53: 0 | N53: 0 | O53: 216 | P53: 0 | Q53: 0 | R53: 0 | S53: 0 | T53: 0 | U53: 216 | X53: 0 | Y53: 0 | Z53: =SUM(R53:Y53) -> 216
B54: ПМ.01.Э | D54: Экзамен по модулю | G54: 4 | H54: =I54+J54 -> 18 | J54: =K54+L54+M54+N54+O54+P54+Q54 -> 18 | P54: 6 | Q54: 12 | U54: 18 | Z54: =SUM(R54:Y54) -> 18
B55: ПМ.02 | D55: Эксплуатация сельскохозяйственной техники | E55: 0 | F55: 2 | G55: 1 | H55: =I55+J55 -> 428 | I55: =SUM(I56:I59) -> 10 | J55: =SUM(J56:J59) -> 418 | K55: =SUM(K56:K59) -> 110 | L55: =SUM(L56:L59) -> 84 | M55: =SUM(M56:M59) -> 20 | N55: =SUM(N56:N59) -> 72 | O55: =SUM(O56:O59) -> 108 | P55: =SUM(P56:P59) -> 12 | Q55: =SUM(Q56:Q59) -> 12 | R55: =SUM(R56:R59) -> 0 | S55: =SUM(S56:S59) -> 0 | T55: =SUM(T56:T59) -> 0 | U55: =SUM(U56:U59) -> 0 | V55: =SUM(V56:V59) -> 112 | W55: =SUM(W56:W59) -> 316 | X55: =SUM(X56:X59) -> 0 | Y55: =SUM(Y56:Y59) -> 0 | Z55: =SUM(R55:Y55) -> 428
B56: МДК. 02.01 | D56: Комплектование машинно-тракторного агрегата для выполнения сельскохозяйственных работ | F56: 6 | H56: =I56+J56 -> 236 | I56: 10 | J56: =K56+L56+M56+N56+O56+P56+Q56 -> 226 | K56: 110 | L56: 84 | M56: 20 | N56: 0 | O56: 0 | P56: 6 | Q56: 6 | R56: 0 | S56: 0 | T56: 0 | U56: 0 | V56: 112 | W56: 124 | X56: 0 | Y56: 0 | Z56: =SUM(R56:Y56) -> 236
B57: УП.02 | D57: Учебная практика | F57: 6 | H57: =I57+J57 -> 72 | I57: 0 | J57: =K57+L57+M57+N57+O57+P57+Q57 -> 72 | K57: 0 | L57: 0 | M57: 0 | N57: 72 | O57: 0 | P57: 0 | Q57: 0 | R57: 0 | S57: 0 | T57: 0 | U57: 0 | V57: 0 | W57: 72 | X57: 0 | Y57: 0 | Z57: =SUM(R57:Y57) -> 72
B58: ПП.02 | D58: Производственная практика | H58: =I58+J58 -> 108 | I58: 0 | J58: =K58+L58+M58+N58+O58+P58+Q58 -> 108 | K58: 0 | L58: 0 | M58: 0 | N58: 0 | O58: 108 | P58: 0 | Q58: 0 | R58: 0 | S58: 0 | T58: 0 | U58: 0 | V58: 0 | W58: 108 | X58: 0 | Y58: 0 | Z58: =SUM(R58:Y58) -> 108
B59: ПМ.02.Э | D59: Экзамен по модулю | G59: 6 | H59: =I59+J59 -> 12 | J59: =K59+L59+M59+N59+O59+P59+Q59 -> 12 | P59: 6 | Q59: 6 | W59: 12 | X59: 0 | Y59: 0 | Z59: =SUM(R59:Y59) -> 12
B60: ПМ.03 | D60: Ремонт сельскохозяйственной техники и оборудования | E60: 0 | F60: 3 | G60: 1 | H60: =I60+J60 -> 658 | I60: =SUM(I61:I65) -> 48 | J60: =SUM(J61:J65) -> 610 | K60: =SUM(K61:K65) -> 112 | L60: =SUM(L61:L65) -> 86 | M60: =SUM(M61:M65) -> 20 | N60: =SUM(N61:N65) -> 180 | O60: =SUM(O61:O65) -> 180 | P60: =SUM(P61:P65) -> 12 | Q60: =SUM(Q61:Q65) -> 20 | R60: =SUM(R61:R65) -> 0 | S60: =SUM(S61:S65) -> 0 | T60: =SUM(T61:T65) -> 0 | U60: =SUM(U61:U65) -> 0 | V60: =SUM(V61:V65) -> 0 | W60: =SUM(W61:W65) -> 0 | X60: =SUM(X61:X65) -> 262 | Y60: =SUM(Y61:Y65) -> 396 | Z60: =SUM(R60:Y60) -> 658
B61: МДК. 03.01 | D61: Система технического обслуживания и ремонта сельскохозяйственных машин и механизмов | F61: 8 | H61: =I61+J61 -> 140 | I61: 24 | J61: =K61+L61+M61+N61+O61+P61+Q61 -> 116 | K61: 46 | L61: 38 | M61: 20 | N61: 0 | O61: 0 | P61: 6 | Q61: 6 | R61: 0 | S61: 0 | T61: 0 | U61: 0 | V61: 0 | W61: 0 | X61: 78 | Y61: 62 | Z61: =SUM(R61:Y61) -> 140
B62: МДК. 03.02 | D62: Технологические процессы ремонтного производства | F62: 8 | H62: =I62+J62 -> 140 | I62: 24 | J62: =K62+L62+M62+N62+O62+P62+Q62 -> 116 | K62: 66 | L62: 48 | M62: 0 | N62: 0 | O62: 0 | P62: 0 | Q62: 2 | R62: 0 | S62: 0 | T62: 0 | U62: 0 | V62: 0 | W62: 0 | X62: 76 | Y62: 64 | Z62: =SUM(R62:Y62) -> 140
B63: УП.03 | D63: Учебная практика | F63: 8 | H63: =I63+J63 -> 180 | I63: 0 | J63: =K63+L63+M63+N63+O63+P63+Q63 -> 180 | K63: 0 | L63: 0 | M63: 0 | N63: 180 | O63: 0 | P63: 0 | Q63: 0 | R63: 0 | S63: 0 | T63: 0 | U63: 0 | V63: 0 | W63: 0 | X63: 72 | Y63: 108 | Z63: =SUM(R63:Y63) -> 180
B64: ПП.03 | D64: Производственная практика | H64: =I64+J64 -> 180 | I64: 0 | J64: =K64+L64+M64+N64+O64+P64+Q64 -> 180 | K64: 0 | L64: 0 | M64: 0 | N64: 0 | O64: 180 | P64: 0 | Q64: 0 | R64: 0 | S64: 0 | T64: 0 | U64: 0 | V64: 0 | W64: 0 | X64: 36 | Y64: 144 | Z64: =SUM(R64:Y64) -> 180
B65: ПМ.03.Э | D65: Экзамен по модулю | G65: 8 | H65: =I65+J65 -> 18 | J65: =K65+L65+M65+N65+O65+P65+Q65 -> 18 | P65: 6 | Q65: 12 | Y65: 18 | Z65: =SUM(R65:Y65) -> 18
B66: ПМ.04 | D66: Освоение одной или нескольких профессий рабочих или должностей служащих | E66: 0 | F66: 2 | G66: 1 | H66: =I66+J66 -> 292 | I66: =SUM(I67,I68,I69,I70) -> 20 | J66: =SUM(J67,J68,J69,J70) -> 272 | K66: =SUM(K67,K68,K69,K70) -> 122 | L66: =SUM(L67,L68,L69,L70) -> 48 | M66: =SUM(M67,M68,M69,M70) -> 0 | N66: =SUM(N67,N68,N69,N70) -> 72 | O66: =SUM(O67,O68,O69,O70) -> 18 | P66: =SUM(P67,P68,P69,P70) -> 4 | Q66: =SUM(Q67,Q68,Q69,Q70) -> 8 | R66: =SUM(R67,R68,R69,R70) -> 0 | S66: =SUM(S67,S68,S69,S70) -> 0 | T66: =SUM(T67,T68,T69,T70) -> 0 | U66: =SUM(U67,U68,U69,U70) -> 0 | V66: =SUM(V67,V68,V69,V70) -> 108 | W66: =SUM(W67,W68,W69,W70) -> 184 | X66: =SUM(X67,X68,X69,X70) -> 0 | Y66: =SUM(Y67,Y68,Y69,Y70) -> 0 | Z66: =SUM(R66:Y66) -> 292
B67: МДК. 04.01 | D67: Освоение профессии рабочих 11442 Водитель автомобиля, категория "С" | F67: 6 | H67: =I67+J67 -> 192 | I67: 20 | J67: =K67+L67+M67+N67+O67+P67+Q67 -> 172 | K67: 122 | L67: 48 | M67: 0 | N67: 0 | O67: 0 | P67: 0 | Q67: 2 | R67: 0 | S67: 0 | T67: 0 | U67: 0 | V67: 108 | W67: 84 | X67: 0 | Y67: 0 | Z67: =SUM(R67:Y67) -> 192
B68: УП.04 | D68: Учебная практика | F68: 6 | H68: =I68+J68 -> 72 | I68: 0 | J68: =K68+L68+M68+N68+O68+P68+Q68 -> 72 | K68: 0 | L68: 0 | M68: 0 | N68: 72 | O68: 0 | P68: 0 | Q68: 0 | R68: 0 | S68: 0 | T68: 0 | U68: 0 | V68: 0 | W68: 72 | X68: 0 | Y68: 0 | Z68: =SUM(R68:Y68) -> 72
B69: ПП.04 | D69: Производственная практика | H69: =I69+J69 -> 18 | I69: 0 | J69: =K69+L69+M69+N69+O69+P69+Q69 -> 18 | K69: 0 | L69: 0 | M69: 0 | N69: 0 | O69: 18 | P69: 0 | Q69: 0 | R69: 0 | S69: 0 | T69: 0 | U69: 0 | V69: 0 | W69: 18 | X69: 0 | Y69: 0 | Z69: =SUM(R69:Y69) -> 18
B70: ПМ.04.ЭК | D70: Квалификационный экзамен | G70: 6 | H70: =I70+J70 -> 10 | J70: =K70+L70+M70+N70+O70+P70+Q70 -> 10 | P70: 4 | Q70: 6 | W70: 10 | Z70: =SUM(R70:Y70) -> 10
B71: ПМ.05 | D71: Освоение одной или нескольких профессий рабочих или должностей служащих | E71: 0 | F71: 2 | G71: 1 | H71: =I71+J71 -> 158 | I71: =SUM(I72:I75) -> 20 | J71: =K71+L71+M71+N71+O71+P71+Q71 -> 138 | K71: =SUM(K72:K75) -> 72 | L71: =SUM(L72:L75) -> 0 | M71: =SUM(M72:M75) -> 0 | N71: =SUM(N72:N75) -> 36 | O71: =SUM(O72:O75) -> 18 | P71: =SUM(P72:P75) -> 4 | Q71: =SUM(Q72:Q75) -> 8 | R71: =SUM(R72:R75) -> 0 | S71: =SUM(S72:S75) -> 0 | T71: =SUM(T72:T75) -> 0 | U71: =SUM(U72:U75) -> 0 | V71: =SUM(V72:V75) -> 50 | W71: =SUM(W72:W75) -> 108 | X71: =SUM(X72:X75) -> 0 | Y71: =SUM(Y72:Y75) -> 0 | Z71: =SUM(R71:Y71) -> 158
B72: МДК. 05.01 | D72: Освоение профессии рабочих 19205 Тракторист-машинист сельскохозяйственного производства | F72: 6 | H72: =I72+J72 -> 94 | I72: 20 | J72: =K72+L72+M72+N72+O72+P72+Q72 -> 74 | K72: 72 | M72: 0 | N72: 0 | O72: 0 | P72: 0 | Q72: 2 | R72: 0 | S72: 0 | T72: 0 | U72: 0 | V72: 50 | W72: 44 | X72: 0 | Y72: 0 | Z72: =SUM(R72:Y72) -> 94
B73: УП.05 | D73: Учебная практика | F73: 6 | H73: =I73+J73 -> 36 | I73: 0 | J73: =K73+L73+M73+N73+O73+P73+Q73 -> 36 | K73: 0 | L73: 0 | M73: 0 | N73: 36 | O73: 0 | P73: 0 | Q73: 0 | R73: 0 | S73: 0 | T73: 0 | U73: 0 | V73: 0 | W73: 36 | X73: 0 | Y73: 0 | Z73: =SUM(R73:Y73) -> 36
B74: ПП.05 | D74: Производственная практика | H74: =I74+J74 -> 18 | I74: 0 | J74: =K74+L74+M74+N74+O74+P74+Q74 -> 18 | K74: 0 | L74: 0 | M74: 0 | N74: 0 | O74: 18 | P74: 0 | Q74: 0 | R74: 0 | S74: 0 | T74: 0 | U74: 0 | V74: 0 | W74: 18 | X74: 0 | Y74: 0 | Z74: =SUM(R74:Y74) -> 18
B75: ПМ.05.ЭК | D75: Квалификационный экзамен | G75: 6 | H75: =I75+J75 -> 10 | J75: =K75+L75+M75+N75+O75+P75+Q75 -> 10 | P75: 4 | Q75: 6 | W75: 10 | Z75: =SUM(R75:Y75) -> 10
B76: ПДП | D76: Преддипломная практика | F76: 1 | H76: =I76+J76 -> 144 | J76: =K76+L76+M76+N76+O76+P76+Q76 -> 144 | O76: 144 | Y76: 144 | Z76: =SUM(R76:Y76) -> 144
B77: ГИА | D77: Государственная итоговая аттестация | H77: =I77+J77 -> 216 | J77: =K77+L77+M77+N77+O77+P77+Q77 -> 216 | Q77: 216 | Y77: 216 | Z77: =SUM(R77:Y77) -> 216
B78: Итого | E78: =SUM(E9,E26,E34,E48) -> 4 | F78: =SUM(F9,F26,F34,F48) -> 36 | G78: =SUM(G9,G26,G34,G48) -> 17 | H78: =SUM(H9,H26,H34,H48) -> 5940 | I78: =SUM(I9,I26,I34,I48) -> 198 | J78: =SUM(J9,J26,J34,J48) -> 5742 | K78: =SUM(K9,K26,K34,K48) -> 2043 | L78: =SUM(L9,L26,L34,L48) -> 1997 | M78: =SUM(M9,M26,M34,M48) -> 40 | N78: =SUM(N9,N26,N34,N48) -> 504 | O78: =SUM(O9,O26,O34,O48) -> 684 | P78: =SUM(P9,P26,P34,P48) -> 76 | Q78: =SUM(Q9,Q26,Q34,Q48) -> 398 | R78: =SUM(R9,R26,R34,R48) -> 612 | S78: =SUM(S9,S26,S34,S48) -> 864 | T78: =SUM(T9,T26,T34,T48) -> 612 | U78: =SUM(U9,U26,U34,U48) -> 864 | V78: =SUM(V9,V26,V34,V48) -> 612 | W78: =SUM(W9,W26,W34,W48) -> 864 | X78: =SUM(X9,X26,X34,X48) -> 612 | Y78: =SUM(Y9,Y26,Y34,Y48) -> 900 | Z78: =SUM(R78:Y78) -> 5940
Z79: =SUM(R79:Y79) -> 0
J80: всего | K80: часов дисциплин и МДК | Q80: =SUM(R80:Y80) -> 4824 | R80: =R78-R81-R82-R83 -> 612 | S80: =S78-S81-S82-S83 -> 864 | T80: =T78-T81-T82-T83 -> 612 | U80: =U78-U81-U82-U83 -> 576 | V80: =V78-V81-V82-V83 -> 612 | W80: =W78-W81-W82-W83 -> 540 | X80: =X78-X81-X82-X83 -> 504 | Y80: =Y78-Y81-Y82-Y83 -> 504 | Z80: =SUM(R80:Y80) -> 4824
B81: Государственная (итоговая) атестация | K81: часов учебной практики | Q81: =SUM(R81:Y81) -> 432 | U81: =SUM(U52,U57,U63,U68,U73) -> 72 | V81: =SUM(V52,V57,V63,V68,V73) -> 0 | W81: =SUM(W52,W57,W63,W68,W73) -> 180 | X81: =SUM(X52,X57,X63,X68,X73) -> 72 | Y81: =SUM(Y52,Y57,Y63,Y68,Y73) -> 108 | Z81: =SUM(R81:Y81) -> 432
B82: 1.1. Дипломный проект (работа) | K82: часов производств. практики | Q82: =SUM(R82:Y82) -> 540 | U82: =SUM(U53,U58,U64,U69,U74) -> 216 | V82: =SUM(V53,V58,V64,V69,V74) -> 0 | W82: =SUM(W53,W58,W64,W69,W74) -> 144 | X82: =SUM(X53,X58,X64,X69,X74) -> 36 | Y82: =SUM(Y53,Y58,Y64,Y69,Y74) -> 144 | Z82: =SUM(R82:Y82) -> 540
B83: Выполнение дипломного проекта (работы) с 18.05 по 14.06 (всего 4 нед.) | K83: часов преддиплом. практики | Q83: =SUM(R83:Y83) -> 144 | Y83: 144 | Z83: =SUM(R83:Y83) -> 144
B84: Защита дипломного проекта (работы) с 15.06 по 28.06 (всего 2 нед.) | K84: кол.-во экзаменов | Q84: =SUM(R84:Y84) -> 17 | R84: 1 | S84: 3 | T84: 1 | U84: 1 | V84: 3 | W84: 5 | X84: 2 | Y84: 1 | Z84: =SUM(R84:Y84) -> 17
B85: 1.2. Государственный экзамен - Выполнение демонстрационного экзамена | K85: кол.-во дифф. зачетов | Q85: =SUM(R85:Y85) -> 36 | R85: 1 | S85: 10 | T85: 2 | U85: 4 | V85: 2 | W85: 8 | X85: 2 | Y85: 7 | Z85: =SUM(R85:Y85) -> 36
K86: кол.-во зачетов | Q86: =SUM(R86:Y86) -> 4 | R86: 0 | S86: 1 | T86: 0 | U86: 2 | W86: 1 | X86: 0 | Y86: 0 | Z86: =SUM(R86:Y86) -> 4
